[Event "Titled Tuesday Blitz February 15 Early 2022"]
[White "Bodnaruk, Anastasia"]
[Black "Popadic, Dragan"]
[WhiteFideId "4181751"]
[BlackFideId "913650"]
[WhiteElo "2393"]
[BlackElo "2199"]
[Result "1/2-1/2"]
[Round "06"]
[TimeControl "180+1"]
[Date "2022.02.15"]
[WhiteClock "0:00:10"]
[BlackClock "0:00:07"]

1. e4 {[%clk 0:02:56]}  c5 {[%clk 0:02:59]} 2. Nc3 {[%clk 0:02:56]}  Nc6 {[%clk 0:02:58]} 3. Bb5 {[%clk 0:02:54]}  Nd4 {[%clk 0:02:55]} 4. Bc4 {[%clk 0:02:54]}  e6 {[%clk 0:02:55]} 5. Nge2 {[%clk 0:02:54]}  Ne7 {[%clk 0:02:55]} 6. O-O {[%clk 0:02:49]}  a6 {[%clk 0:02:54]} 7. a4 {[%clk 0:02:49]}  Nec6 {[%clk 0:02:53]} 8. d3 {[%clk 0:02:45]}  Be7 {[%clk 0:02:53]} 9. Be3 {[%clk 0:02:40]}  O-O {[%clk 0:02:51]} 10. f4 {[%clk 0:02:40]}  Bf6 {[%clk 0:02:35]} 11. e5 {[%clk 0:02:33]}  Be7 {[%clk 0:02:35]} 12. Ne4 {[%clk 0:02:33]}  d5 {[%clk 0:02:24]} 13. exd6 {[%clk 0:02:32]}  Bxd6 {[%clk 0:02:24]} 14. c3 {[%clk 0:02:26]}  Nxe2+ {[%clk 0:02:23]} 15. Qxe2 {[%clk 0:02:26]}  b6 {[%clk 0:02:20]} 16. Rad1 {[%clk 0:02:11]}  Be7 {[%clk 0:02:18]} 17. Ng5 {[%clk 0:01:50]}  Bb7 {[%clk 0:02:08]} 18. Nf3 {[%clk 0:01:48]}  Bf6 {[%clk 0:02:02]} 19. d4 {[%clk 0:01:37]}  cxd4 {[%clk 0:02:01]} 20. Nxd4 {[%clk 0:01:37]}  Nxd4 {[%clk 0:02:00]} 21. Bxd4 {[%clk 0:01:37]}  Bxd4+ {[%clk 0:01:59]} 22. Rxd4 {[%clk 0:01:37]}  Qc7 {[%clk 0:01:59]} 23. Rfd1 {[%clk 0:01:24]}  Rad8 {[%clk 0:01:58]} 24. Bb3 {[%clk 0:01:11]}  Rxd4 {[%clk 0:01:56]} 25. Rxd4 {[%clk 0:01:11]}  Rd8 {[%clk 0:01:56]} 26. Rxd8+ {[%clk 0:01:04]}  Qxd8 {[%clk 0:01:55]} 27. Bc2 {[%clk 0:01:04]}  Qd5 {[%clk 0:01:50]} 28. Bd3 {[%clk 0:00:59]}  a5 {[%clk 0:01:47]} 29. Bc4 {[%clk 0:00:56]}  Qc5+ {[%clk 0:01:41]} 30. Kf1 {[%clk 0:00:55]}  g6 {[%clk 0:01:39]} 31. Qd3 {[%clk 0:00:44]}  Qc6 {[%clk 0:01:32]} 32. Qe2 {[%clk 0:00:44]}  Qd6 {[%clk 0:01:28]} 33. g3 {[%clk 0:00:42]}  Qc6 {[%clk 0:01:25]} 34. Ke1 {[%clk 0:00:40]}  Qh1+ {[%clk 0:01:21]} 35. Kd2 {[%clk 0:00:40]}  Qb1 {[%clk 0:01:17]} 36. Ke3 {[%clk 0:00:39]}  Qe4+ {[%clk 0:01:14]} 37. Kd2 {[%clk 0:00:39]}  Qc6 {[%clk 0:01:11]} 38. Bb5 {[%clk 0:00:34]}  Qh1 {[%clk 0:01:05]} 39. Bd3 {[%clk 0:00:29]}  Qd5 {[%clk 0:01:01]} 40. Kc2 {[%clk 0:00:26]}  Bc6 {[%clk 0:00:59]} 41. b3 {[%clk 0:00:26]}  Qc5 {[%clk 0:00:56]} 42. Kb2 {[%clk 0:00:25]}  h5 {[%clk 0:00:53]} 43. Be4 {[%clk 0:00:19]}  Bxe4 {[%clk 0:00:45]} 44. Qxe4 {[%clk 0:00:19]}  Qf2+ {[%clk 0:00:45]} 45. Qc2 {[%clk 0:00:20]}  Qe3 {[%clk 0:00:40]} 46. b4 {[%clk 0:00:16]}  h4 {[%clk 0:00:35]} 47. bxa5 {[%clk 0:00:10]}  bxa5 {[%clk 0:00:34]} 48. Qg2 {[%clk 0:00:10]}  hxg3 {[%clk 0:00:29]} 49. hxg3 {[%clk 0:00:10]}  Qb6+ {[%clk 0:00:29]} 50. Kc2 {[%clk 0:00:09]}  Qc5 {[%clk 0:00:26]} 51. Qe2 {[%clk 0:00:07]}  Qa3 {[%clk 0:00:22]} 52. Qc4 {[%clk 0:00:07]}  Qa1 {[%clk 0:00:16]} 53. Qc8+ {[%clk 0:00:07]}  Kg7 {[%clk 0:00:14]} 54. Qd7 {[%clk 0:00:07]}  Qa2+ {[%clk 0:00:13]} 55. Kc1 {[%clk 0:00:07]}  Qf2 {[%clk 0:00:12]} 56. Qd4+ {[%clk 0:00:07]}  Qxd4 {[%clk 0:00:11]} 57. cxd4 {[%clk 0:00:07]}  Kf8 {[%clk 0:00:11]} 58. Kc2 {[%clk 0:00:07]}  Ke7 {[%clk 0:00:11]} 59. Kc3 {[%clk 0:00:08]}  Kd6 {[%clk 0:00:12]} 60. Kc4 {[%clk 0:00:07]}  Kc6 {[%clk 0:00:12]} 61. g4 {[%clk 0:00:07]}  f6 {[%clk 0:00:10]} 62. Kc3 {[%clk 0:00:03]}  Kd6 {[%clk 0:00:09]} 63. Kc4 {[%clk 0:00:03]}  Kc6 {[%clk 0:00:09]} 64. Kc3 {[%clk 0:00:04]}  Kd5 {[%clk 0:00:09]} 65. Kd3 {[%clk 0:00:04]}  e5 {[%clk 0:00:06]} 66. dxe5 {[%clk 0:00:04]}  fxe5 {[%clk 0:00:06]} 67. f5 {[%clk 0:00:04]}  gxf5 {[%clk 0:00:06]} 68. gxf5 {[%clk 0:00:05]}  e4+ {[%clk 0:00:06]} 69. Ke3 {[%clk 0:00:05]}  Ke5 {[%clk 0:00:06]} 70. f6 {[%clk 0:00:06]}  Kxf6 {[%clk 0:00:06]} 71. Kxe4 {[%clk 0:00:07]}  Ke6 {[%clk 0:00:07]} 72. Kd4 {[%clk 0:00:07]}  Kd6 {[%clk 0:00:07]} 73. Kc4 {[%clk 0:00:08]}  Kc6 {[%clk 0:00:07]} 74. Kd4 {[%clk 0:00:09]}  Kd6 {[%clk 0:00:07]} 75. Kc4 {[%clk 0:00:09]}  Kc6 {[%clk 0:00:07]} 76. Kd4 {[%clk 0:00:10]}  Kd6 {[%clk 0:00:07]} 1/2-1/2


[Site "https://www.chess.com"]

[Event "Titled Tuesday Blitz February 15 Early 2022"]
[White "Boraso, Alessio"]
[Black "Rozhkov, Viacheslav"]
[WhiteFideId "848077"]
[BlackFideId "4181484"]
[WhiteElo "2277"]
[BlackElo "2324"]
[Result "1-0"]
[Round "06"]
[TimeControl "180+1"]
[Date "2022.02.15"]
[WhiteClock "0:00:03"]
[BlackClock "0:00:09"]

1. e4 {[%clk 0:03:00]}  c5 {[%clk 0:02:59]} 2. Nf3 {[%clk 0:02:58]}  d6 {[%clk 0:02:59]} 3. Bb5+ {[%clk 0:02:56]}  Nd7 {[%clk 0:02:59]} 4. d4 {[%clk 0:02:43]}  cxd4 {[%clk 0:02:53]} 5. Qxd4 {[%clk 0:02:44]}  a6 {[%clk 0:02:51]} 6. Bxd7+ {[%clk 0:02:37]}  Bxd7 {[%clk 0:02:50]} 7. O-O {[%clk 0:02:38]}  e5 {[%clk 0:02:50]} 8. Qd3 {[%clk 0:02:35]}  Rc8 {[%clk 0:02:45]} 9. Nc3 {[%clk 0:02:31]}  h6 {[%clk 0:02:44]} 10. Be3 {[%clk 0:02:24]}  Nf6 {[%clk 0:02:42]} 11. Rfd1 {[%clk 0:02:21]}  Bc6 {[%clk 0:02:39]} 12. Nd2 {[%clk 0:02:15]}  Be7 {[%clk 0:02:38]} 13. a4 {[%clk 0:02:14]}  O-O {[%clk 0:02:36]} 14. a5 {[%clk 0:02:14]}  d5 {[%clk 0:02:29]} 15. exd5 {[%clk 0:02:10]}  Nxd5 {[%clk 0:02:28]} 16. Nxd5 {[%clk 0:02:08]}  Qxd5 {[%clk 0:02:27]} 17. Qxd5 {[%clk 0:02:05]}  Bxd5 {[%clk 0:02:28]} 18. c3 {[%clk 0:02:03]}  Rfd8 {[%clk 0:02:25]} 19. Bb6 {[%clk 0:01:58]}  Rd6 {[%clk 0:02:20]} 20. b4 {[%clk 0:01:44]}  Rxc3 {[%clk 0:02:10]} 21. Bc5 {[%clk 0:01:37]}  Rg6 {[%clk 0:01:05]} 22. Bxe7 {[%clk 0:01:22]}  Rxg2+ {[%clk 0:01:01]} 23. Kf1 {[%clk 0:01:21]}  Rxh2 {[%clk 0:01:02]} 24. Bc5 {[%clk 0:01:09]}  Bc6 {[%clk 0:00:49]} 25. f3 {[%clk 0:00:37]}  Rd3 {[%clk 0:00:31]} 26. Bf2 {[%clk 0:00:16]}  f5 {[%clk 0:00:20]} 27. Kg1 {[%clk 0:00:09]}  Rh3 {[%clk 0:00:18]} 28. Nc4 {[%clk 0:00:09]}  Rxd1+ {[%clk 0:00:15]} 29. Rxd1 {[%clk 0:00:09]}  Bxf3 {[%clk 0:00:16]} 30. Rd8+ {[%clk 0:00:09]}  Kh7 {[%clk 0:00:16]} 31. Bc5 {[%clk 0:00:06]}  e4 {[%clk 0:00:12]} 32. Bd4 {[%clk 0:00:05]}  Rg3+ {[%clk 0:00:10]} 33. Kf2 {[%clk 0:00:05]}  Rg2+ {[%clk 0:00:10]} 34. Ke3 {[%clk 0:00:06]}  g5 {[%clk 0:00:11]} 35. Rh8+ {[%clk 0:00:02]}  Kg6 {[%clk 0:00:11]} 36. Ne5+ {[%clk 0:00:03]}  Kh5 {[%clk 0:00:11]} 37. Nxf3 {[%clk 0:00:03]}  Rg3 {[%clk 0:00:08]} 38. Bg7 {[%clk 0:00:02]}  Rxf3+ {[%clk 0:00:08]} 39. Ke2 {[%clk 0:00:03]}  Kg4 {[%clk 0:00:09]} 40. Rxh6 {[%clk 0:00:03]}  Rb3 {[%clk 0:00:09]} 41. Rg6 {[%clk 0:00:02]}  f4 {[%clk 0:00:10]} 42. Bf6 {[%clk 0:00:03]}  Kf5 {[%clk 0:00:09]} 43. Rh6 {[%clk 0:00:01]}  Rb2+ {[%clk 0:00:09]} 44. Bxb2 {[%clk 0:00:01]}  g4 {[%clk 0:00:08]} 45. Rf6+ {[%clk 0:00:01]}  Kg5 {[%clk 0:00:08]} 46. Re6 {[%clk 0:00:02]}  Kf5 {[%clk 0:00:08]} 47. Re5+ {[%clk 0:00:02]}  Kg6 {[%clk 0:00:08]} 48. Rxe4 {[%clk 0:00:03]}  Kg5 {[%clk 0:00:09]} 49. Re5+ {[%clk 0:00:03]} 1-0


[Site "https://www.chess.com"]

[Event "Titled Tuesday Blitz February 15 Early 2022"]
[White "Borisova, Ekaterina"]
[Black "Firat, Burak"]
[WhiteFideId "34124184"]
[BlackFideId "6305881"]
[WhiteElo "2034"]
[BlackElo "2419"]
[Result "1-0"]
[Round "06"]
[TimeControl "180+1"]
[Date "2022.02.15"]
[WhiteClock "0:00:19"]
[BlackClock "0:01:54"]

1. d4 {[%clk 0:03:00]}  d5 {[%clk 0:02:57]} 2. c4 {[%clk 0:03:00]}  c6 {[%clk 0:02:58]} 3. cxd5 {[%clk 0:03:01]}  cxd5 {[%clk 0:02:57]} 4. Bf4 {[%clk 0:03:01]}  Nf6 {[%clk 0:02:57]} 5. Nc3 {[%clk 0:03:01]}  Nc6 {[%clk 0:02:57]} 6. e3 {[%clk 0:03:01]}  a6 {[%clk 0:02:56]} 7. Rc1 {[%clk 0:03:00]}  Bg4 {[%clk 0:02:53]} 8. Nf3 {[%clk 0:02:59]}  e6 {[%clk 0:02:52]} 9. Qb3 {[%clk 0:02:58]}  Bxf3 {[%clk 0:02:46]} 10. gxf3 {[%clk 0:02:58]}  Bd6 {[%clk 0:02:36]} 11. Qxb7 {[%clk 0:01:21]}  Na5 {[%clk 0:02:34]} 12. Qxa8 {[%clk 0:01:19]}  Qxa8 {[%clk 0:02:35]} 13. Bxd6 {[%clk 0:01:20]}  Kd7 {[%clk 0:02:32]} 14. Ba3 {[%clk 0:01:03]}  Nc4 {[%clk 0:02:31]} 15. Bxc4 {[%clk 0:00:59]}  dxc4 {[%clk 0:02:32]} 16. e4 {[%clk 0:01:00]}  Qc6 {[%clk 0:02:23]} 17. Rg1 {[%clk 0:00:58]}  g6 {[%clk 0:02:17]} 18. Rg5 {[%clk 0:00:58]}  Qc7 {[%clk 0:02:09]} 19. Rc5 {[%clk 0:00:37]}  Qxh2 {[%clk 0:02:07]} 20. Na4 {[%clk 0:00:37]}  Qg1+ {[%clk 0:02:01]} 21. Ke2 {[%clk 0:00:28]}  Qxc1 {[%clk 0:01:59]} 22. Nb6+ {[%clk 0:00:28]}  Kd6 {[%clk 0:01:56]} 23. e5+ {[%clk 0:00:19]}  Ke7 {[%clk 0:01:56]} 24. Rxc4+ {[%clk 0:00:19]}  Kd8 {[%clk 0:01:54]} 25. Rxc1 {[%clk 0:00:19]} 1-0


[Site "https://www.chess.com"]

[Event "Titled Tuesday Blitz February 15 Early 2022"]
[White "Boruchovsky, Avital"]
[Black "Jobava, Baadur"]
[WhiteFideId "2800055"]
[BlackFideId "13601520"]
[WhiteElo "2469"]
[BlackElo "2617"]
[Result "0-1"]
[Round "06"]
[TimeControl "180+1"]
[Date "2022.02.15"]
[WhiteClock "0:00:11"]
[BlackClock "0:00:48"]

1. e4 {[%clk 0:03:00]}  c6 {[%clk 0:03:00]} 2. d4 {[%clk 0:02:59]}  d5 {[%clk 0:03:01]} 3. e5 {[%clk 0:03:00]}  Bf5 {[%clk 0:03:00]} 4. Nf3 {[%clk 0:02:59]}  e6 {[%clk 0:03:01]} 5. Be2 {[%clk 0:02:59]}  h6 {[%clk 0:03:01]} 6. O-O {[%clk 0:02:59]}  Ne7 {[%clk 0:03:02]} 7. Re1 {[%clk 0:02:58]}  Bh7 {[%clk 0:03:02]} 8. Nbd2 {[%clk 0:02:58]}  Ng6 {[%clk 0:03:03]} 9. Nf1 {[%clk 0:02:57]}  c5 {[%clk 0:03:01]} 10. c4 {[%clk 0:02:55]}  dxc4 {[%clk 0:03:01]} 11. Bxc4 {[%clk 0:02:52]}  cxd4 {[%clk 0:03:00]} 12. Qb3 {[%clk 0:02:47]}  Qb6 {[%clk 0:02:53]} 13. Nxd4 {[%clk 0:02:21]}  Bc5 {[%clk 0:02:34]} 14. Qxb6 {[%clk 0:01:43]}  Bxb6 {[%clk 0:02:35]} 15. Bb5+ {[%clk 0:01:36]}  Nd7 {[%clk 0:02:25]} 16. Be3 {[%clk 0:01:34]}  Rd8 {[%clk 0:02:15]} 17. Rad1 {[%clk 0:01:31]}  Ke7 {[%clk 0:02:11]} 18. f4 {[%clk 0:01:03]}  Nc5 {[%clk 0:02:07]} 19. Ng3 {[%clk 0:00:57]}  Nxf4 {[%clk 0:01:55]} 20. Bxf4 {[%clk 0:00:50]}  Nd3 {[%clk 0:01:55]} 21. Bxd3 {[%clk 0:00:33]}  Rxd4 {[%clk 0:01:55]} 22. Be3 {[%clk 0:00:32]}  Rxd3 {[%clk 0:01:56]} 23. Bxb6 {[%clk 0:00:31]}  axb6 {[%clk 0:01:55]} 24. Rxd3 {[%clk 0:00:25]}  Bxd3 {[%clk 0:01:56]} 25. Rd1 {[%clk 0:00:25]}  Bc4 {[%clk 0:01:52]} 26. Rd6 {[%clk 0:00:25]}  Bxa2 {[%clk 0:01:49]} 27. Rxb6 {[%clk 0:00:25]}  Bd5 {[%clk 0:01:50]} 28. Ne2 {[%clk 0:00:25]}  Rc8 {[%clk 0:01:45]} 29. Nc3 {[%clk 0:00:25]}  Bc6 {[%clk 0:01:45]} 30. Kf2 {[%clk 0:00:25]}  Rd8 {[%clk 0:01:37]} 31. b4 {[%clk 0:00:18]}  Rd2+ {[%clk 0:01:22]} 32. Ke3 {[%clk 0:00:18]}  Rxg2 {[%clk 0:01:21]} 33. b5 {[%clk 0:00:18]}  Rb2 {[%clk 0:01:22]} 34. Kd4 {[%clk 0:00:15]}  Kd8 {[%clk 0:01:18]} 35. Kc5 {[%clk 0:00:13]}  Kc7 {[%clk 0:01:13]} 36. Na4 {[%clk 0:00:12]}  Rc2+ {[%clk 0:01:12]} 37. Kb4 {[%clk 0:00:12]}  Bd5 {[%clk 0:01:11]} 38. Rd6 {[%clk 0:00:12]}  Rc4+ {[%clk 0:00:46]} 39. Ka5 {[%clk 0:00:12]}  Rxa4+ {[%clk 0:00:46]} 40. Kxa4 {[%clk 0:00:12]}  b6 {[%clk 0:00:47]} 41. Kb4 {[%clk 0:00:12]}  f6 {[%clk 0:00:48]} 42. exf6 {[%clk 0:00:11]}  gxf6 {[%clk 0:00:48]} 0-1


[Site "https://www.chess.com"]

[Event "Titled Tuesday Blitz February 15 Early 2022"]
[White "Brodowski, Piotr"]
[Black "Ferreira, Vitor Hugo Vieira"]
[WhiteFideId "1124480"]
[BlackFideId "2119765"]
[WhiteElo "2422"]
[BlackElo "2216"]
[Result "0-1"]
[Round "06"]
[TimeControl "180+1"]
[Date "2022.02.15"]
[WhiteClock "0:00:32"]
[BlackClock "0:01:24"]

1. d4 {[%clk 0:03:00]}  d5 {[%clk 0:02:56]} 2. c4 {[%clk 0:02:58]}  c6 {[%clk 0:02:57]} 3. Nc3 {[%clk 0:02:56]}  Nf6 {[%clk 0:02:57]} 4. e3 {[%clk 0:02:55]}  e6 {[%clk 0:02:57]} 5. Nf3 {[%clk 0:02:55]}  Nbd7 {[%clk 0:02:57]} 6. Qc2 {[%clk 0:02:52]}  Bd6 {[%clk 0:02:56]} 7. g4 {[%clk 0:02:51]}  Nxg4 {[%clk 0:02:57]} 8. Rg1 {[%clk 0:02:51]}  Qf6 {[%clk 0:02:55]} 9. Be2 {[%clk 0:02:45]}  Nxh2 {[%clk 0:02:53]} 10. Nxh2 {[%clk 0:02:40]}  Bxh2 {[%clk 0:02:54]} 11. Rg2 {[%clk 0:02:41]}  Bd6 {[%clk 0:02:53]} 12. e4 {[%clk 0:02:41]}  dxe4 {[%clk 0:02:47]} 13. Nxe4 {[%clk 0:02:40]}  Bb4+ {[%clk 0:02:47]} 14. Kf1 {[%clk 0:02:39]}  Qf5 {[%clk 0:02:43]} 15. c5 {[%clk 0:02:34]}  O-O {[%clk 0:02:42]} 16. Bh6 {[%clk 0:02:01]}  Qh3 {[%clk 0:02:38]} 17. Bd2 {[%clk 0:01:06]}  Bxd2 {[%clk 0:02:32]} 18. Qxd2 {[%clk 0:01:07]}  f5 {[%clk 0:02:29]} 19. Qg5 {[%clk 0:01:05]}  Rf7 {[%clk 0:02:20]} 20. Nd6 {[%clk 0:01:03]}  h6 {[%clk 0:02:18]} 21. Qg6 {[%clk 0:00:54]}  Re7 {[%clk 0:02:17]} 22. Bc4 {[%clk 0:00:48]}  Nf8 {[%clk 0:02:17]} 23. Qf6 {[%clk 0:00:45]}  Qxg2+ {[%clk 0:02:02]} 24. Kxg2 {[%clk 0:00:45]}  gxf6 {[%clk 0:02:02]} 25. Nxf5 {[%clk 0:00:46]}  Rh7 {[%clk 0:01:56]} 26. Rg1 {[%clk 0:00:44]}  Kh8 {[%clk 0:01:56]} 27. Kf3 {[%clk 0:00:44]}  Bd7 {[%clk 0:01:47]} 28. Nd6 {[%clk 0:00:45]}  b6 {[%clk 0:01:40]} 29. Bd3 {[%clk 0:00:44]}  Rg7 {[%clk 0:01:37]} 30. Rh1 {[%clk 0:00:44]}  bxc5 {[%clk 0:01:32]} 31. Rxh6+ {[%clk 0:00:41]}  Kg8 {[%clk 0:01:33]} 32. dxc5 {[%clk 0:00:42]}  f5 {[%clk 0:01:31]} 33. Bc4 {[%clk 0:00:36]}  Ng6 {[%clk 0:01:30]} 34. Ke3 {[%clk 0:00:32]}  Ne5 {[%clk 0:01:27]} 35. Bb3 {[%clk 0:00:32]}  Ng4+ {[%clk 0:01:27]} 36. Kf4 {[%clk 0:00:32]}  Nxh6 {[%clk 0:01:28]} 37. Ke5 {[%clk 0:00:33]}  Ng4+ {[%clk 0:01:26]} 38. Kf4 {[%clk 0:00:33]}  Kf8 {[%clk 0:01:25]} 39. f3 {[%clk 0:00:31]}  e5+ {[%clk 0:01:26]} 40. Kg3 {[%clk 0:00:31]}  Ne3+ {[%clk 0:01:25]} 41. Kh4 {[%clk 0:00:32]}  Ke7 {[%clk 0:01:24]} 0-1


[Site "https://www.chess.com"]

[Event "Titled Tuesday Blitz February 15 Early 2022"]
[White "Cherniaiev, Tykhon"]
[Black "Martin Carmona, Gaston Manuel"]
[WhiteFideId "14182360"]
[BlackFideId "22284567"]
[WhiteElo "2289"]
[BlackElo "2161"]
[Result "1/2-1/2"]
[Round "06"]
[TimeControl "180+1"]
[Date "2022.02.15"]
[WhiteClock "0:00:08"]
[BlackClock "0:00:05"]

1. Nf3 {[%clk 0:03:00]}  Nf6 {[%clk 0:02:59]} 2. c4 {[%clk 0:02:59]}  g6 {[%clk 0:03:00]} 3. b3 {[%clk 0:02:59]}  Bg7 {[%clk 0:02:57]} 4. Bb2 {[%clk 0:02:59]}  O-O {[%clk 0:02:57]} 5. g3 {[%clk 0:02:59]}  b6 {[%clk 0:02:57]} 6. Bg2 {[%clk 0:02:59]}  Bb7 {[%clk 0:02:58]} 7. O-O {[%clk 0:02:59]}  c5 {[%clk 0:02:58]} 8. d4 {[%clk 0:02:59]}  cxd4 {[%clk 0:02:58]} 9. Nxd4 {[%clk 0:03:00]}  Qc8 {[%clk 0:02:58]} 10. Nc3 {[%clk 0:03:00]}  Bxg2 {[%clk 0:02:57]} 11. Kxg2 {[%clk 0:03:01]}  Qb7+ {[%clk 0:02:57]} 12. f3 {[%clk 0:02:59]}  Nc6 {[%clk 0:02:53]} 13. e4 {[%clk 0:02:54]}  Ng4 {[%clk 0:02:43]} 14. Nd5 {[%clk 0:02:33]}  e6 {[%clk 0:01:53]} 15. fxg4 {[%clk 0:02:15]}  exd5 {[%clk 0:01:49]} 16. exd5 {[%clk 0:02:16]}  Ne5 {[%clk 0:01:48]} 17. Nb5 {[%clk 0:02:13]}  Nxg4 {[%clk 0:01:40]} 18. Qxg4 {[%clk 0:02:11]}  Bxb2 {[%clk 0:01:39]} 19. Rae1 {[%clk 0:02:10]}  f5 {[%clk 0:01:26]} 20. Qf4 {[%clk 0:01:41]}  Bf6 {[%clk 0:01:23]} 21. h4 {[%clk 0:01:14]}  a6 {[%clk 0:01:19]} 22. Qc7 {[%clk 0:01:07]}  Qxc7 {[%clk 0:01:12]} 23. Nxc7 {[%clk 0:01:07]}  Ra7 {[%clk 0:00:48]} 24. d6 {[%clk 0:01:07]}  Bc3 {[%clk 0:00:44]} 25. Re7 {[%clk 0:01:00]}  Bb4 {[%clk 0:00:39]} 26. Rxd7 {[%clk 0:00:53]}  b5 {[%clk 0:00:37]} 27. Rd1 {[%clk 0:00:49]}  bxc4 {[%clk 0:00:35]} 28. bxc4 {[%clk 0:00:50]}  Rc8 {[%clk 0:00:30]} 29. Nd5 {[%clk 0:00:38]}  Rxd7 {[%clk 0:00:29]} 30. Nf6+ {[%clk 0:00:37]}  Kf7 {[%clk 0:00:30]} 31. Nxd7 {[%clk 0:00:37]}  Ke6 {[%clk 0:00:21]} 32. Nb6 {[%clk 0:00:37]}  Rd8 {[%clk 0:00:21]} 33. d7 {[%clk 0:00:23]}  Ba5 {[%clk 0:00:17]} 34. Nd5 {[%clk 0:00:06]}  Rxd7 {[%clk 0:00:17]} 35. Kf3 {[%clk 0:00:07]}  Rd6 {[%clk 0:00:15]} 36. Rd3 {[%clk 0:00:07]}  Rc6 {[%clk 0:00:12]} 37. Nf4+ {[%clk 0:00:06]}  Ke7 {[%clk 0:00:11]} 38. Nd5+ {[%clk 0:00:06]}  Ke6 {[%clk 0:00:11]} 39. Rd4 {[%clk 0:00:06]}  Bb6 {[%clk 0:00:10]} 40. Rd1 {[%clk 0:00:06]}  Bc5 {[%clk 0:00:10]} 41. Nf4+ {[%clk 0:00:06]}  Ke7 {[%clk 0:00:10]} 42. Re1+ {[%clk 0:00:06]}  Kf7 {[%clk 0:00:10]} 43. Nd3 {[%clk 0:00:05]}  Bd4 {[%clk 0:00:10]} 44. Rc1 {[%clk 0:00:04]}  a5 {[%clk 0:00:10]} 45. a4 {[%clk 0:00:02]}  Rb6 {[%clk 0:00:10]} 46. c5 {[%clk 0:00:02]}  Rb3 {[%clk 0:00:10]} 47. Ke2 {[%clk 0:00:03]}  Ke6 {[%clk 0:00:10]} 48. c6 {[%clk 0:00:03]}  Rb8 {[%clk 0:00:08]} 49. Nf4+ {[%clk 0:00:03]}  Kd6 {[%clk 0:00:08]} 50. Kd3 {[%clk 0:00:04]}  Be5 {[%clk 0:00:08]} 51. Ne2 {[%clk 0:00:03]}  Rc8 {[%clk 0:00:08]} 52. Rc4 {[%clk 0:00:02]}  Rxc6 {[%clk 0:00:08]} 53. Rxc6+ {[%clk 0:00:03]}  Kxc6 {[%clk 0:00:09]} 54. Kc4 {[%clk 0:00:03]}  Bc7 {[%clk 0:00:08]} 55. Nd4+ {[%clk 0:00:04]}  Kd7 {[%clk 0:00:07]} 56. Ne2 {[%clk 0:00:04]}  h6 {[%clk 0:00:07]} 57. Kd5 {[%clk 0:00:04]}  g5 {[%clk 0:00:07]} 58. hxg5 {[%clk 0:00:04]}  hxg5 {[%clk 0:00:08]} 59. Nd4 {[%clk 0:00:05]}  f4 {[%clk 0:00:07]} 60. gxf4 {[%clk 0:00:05]}  gxf4 {[%clk 0:00:08]} 61. Nf3 {[%clk 0:00:05]}  Bd6 {[%clk 0:00:07]} 62. Nd4 {[%clk 0:00:05]}  Bb4 {[%clk 0:00:07]} 63. Nf3 {[%clk 0:00:05]}  Bc3 {[%clk 0:00:07]} 64. Ke4 {[%clk 0:00:05]}  Kc6 {[%clk 0:00:06]} 65. Kxf4 {[%clk 0:00:06]}  Kc5 {[%clk 0:00:07]} 66. Ke4 {[%clk 0:00:06]}  Kb4 {[%clk 0:00:07]} 67. Kd3 {[%clk 0:00:07]}  Bf6 {[%clk 0:00:06]} 68. Nd2 {[%clk 0:00:07]}  Kxa4 {[%clk 0:00:07]} 69. Nc4 {[%clk 0:00:08]}  Kb4 {[%clk 0:00:05]} 1/2-1/2


[Site "https://www.chess.com"]

[Event "Titled Tuesday Blitz February 15 Early 2022"]
[White "Chernomordik, Pavel"]
[Black "Glidzhain, Gor"]
[WhiteFideId "2804530"]
[BlackFideId "24109932"]
[WhiteElo "2249"]
[BlackElo "2229"]
[Result "0-1"]
[Round "06"]
[TimeControl "180+1"]
[Date "2022.02.15"]
[WhiteClock "0:00:01"]
[BlackClock "0:00:12"]

1. e4 {[%clk 0:03:00]}  e5 {[%clk 0:02:58]} 2. Nf3 {[%clk 0:03:00]}  d6 {[%clk 0:02:58]} 3. d4 {[%clk 0:02:59]}  exd4 {[%clk 0:02:59]} 4. Qxd4 {[%clk 0:02:59]}  Nf6 {[%clk 0:02:59]} 5. Bg5 {[%clk 0:02:58]}  Be7 {[%clk 0:02:59]} 6. Nc3 {[%clk 0:02:58]}  O-O {[%clk 0:02:59]} 7. O-O-O {[%clk 0:02:57]}  Nc6 {[%clk 0:03:00]} 8. Qd2 {[%clk 0:02:57]}  Be6 {[%clk 0:03:00]} 9. Kb1 {[%clk 0:02:55]}  a6 {[%clk 0:03:00]} 10. h3 {[%clk 0:02:50]}  b5 {[%clk 0:03:00]} 11. Nd4 {[%clk 0:02:49]}  Nxd4 {[%clk 0:03:00]} 12. Qxd4 {[%clk 0:02:43]}  c5 {[%clk 0:03:00]} 13. Qe3 {[%clk 0:02:37]}  Qa5 {[%clk 0:02:58]} 14. Nd5 {[%clk 0:02:28]}  Bxd5 {[%clk 0:02:26]} 15. exd5 {[%clk 0:02:24]}  Rfe8 {[%clk 0:02:26]} 16. g4 {[%clk 0:02:10]}  Nxd5 {[%clk 0:02:13]} 17. Qd2 {[%clk 0:01:52]}  Qxd2 {[%clk 0:01:36]} 18. Bxd2 {[%clk 0:01:48]}  Nb6 {[%clk 0:01:32]} 19. Bg2 {[%clk 0:01:47]}  Rab8 {[%clk 0:01:33]} 20. Bf4 {[%clk 0:01:45]}  Red8 {[%clk 0:01:29]} 21. Rhe1 {[%clk 0:01:43]}  Bf8 {[%clk 0:01:30]} 22. b3 {[%clk 0:01:33]}  a5 {[%clk 0:01:30]} 23. Rd2 {[%clk 0:01:31]}  a4 {[%clk 0:01:30]} 24. Red1 {[%clk 0:01:31]}  a3 {[%clk 0:01:23]} 25. c3 {[%clk 0:01:21]}  Nc8 {[%clk 0:00:38]} 26. Kc2 {[%clk 0:01:11]}  b4 {[%clk 0:00:38]} 27. c4 {[%clk 0:01:08]}  h6 {[%clk 0:00:36]} 28. Be4 {[%clk 0:01:04]}  Re8 {[%clk 0:00:29]} 29. Bf5 {[%clk 0:01:00]}  g6 {[%clk 0:00:18]} 30. Bxc8 {[%clk 0:00:57]}  Rbxc8 {[%clk 0:00:19]} 31. Bxd6 {[%clk 0:00:57]}  Bg7 {[%clk 0:00:20]} 32. Rd5 {[%clk 0:00:40]}  Bd4 {[%clk 0:00:20]} 33. Bg3 {[%clk 0:00:38]}  Re2+ {[%clk 0:00:19]} 34. Rd2 {[%clk 0:00:37]}  Rce8 {[%clk 0:00:20]} 35. Kd3 {[%clk 0:00:32]}  Re1 {[%clk 0:00:18]} 36. Bd6 {[%clk 0:00:25]}  Bc3 {[%clk 0:00:12]} 37. Bxc5 {[%clk 0:00:15]}  Bxd2 {[%clk 0:00:11]} 38. Kxd2 {[%clk 0:00:14]}  R1e2+ {[%clk 0:00:12]} 39. Kd3 {[%clk 0:00:13]}  Rxa2 {[%clk 0:00:12]} 40. Bxb4 {[%clk 0:00:12]}  Rb2 {[%clk 0:00:13]} 41. Bc3 {[%clk 0:00:09]}  Rxb3 {[%clk 0:00:12]} 42. Kc2 {[%clk 0:00:09]}  Rbb8 {[%clk 0:00:09]} 43. Ra5 {[%clk 0:00:05]}  Ra8 {[%clk 0:00:09]} 44. Rxa8 {[%clk 0:00:04]}  Rxa8 {[%clk 0:00:10]} 45. Kb3 {[%clk 0:00:03]}  a2 {[%clk 0:00:11]} 46. Ba1 {[%clk 0:00:03]}  Kf8 {[%clk 0:00:11]} 47. c5 {[%clk 0:00:02]}  Ke7 {[%clk 0:00:12]} 48. Kc4 {[%clk 0:00:02]}  Kd7 {[%clk 0:00:13]} 49. Kd5 {[%clk 0:00:02]}  Rb8 {[%clk 0:00:12]} 50. c6+ {[%clk 0:00:01]}  Kc8 {[%clk 0:00:12]} 0-1


[Site "https://www.chess.com"]